bitfinex-derivatives/quotes_SOLF0:USTF0_20250903
["timestamp","ask_amount","ask_price","bid_price","bid_amount"]
[1756927275395,7.26,209.99,209.97,0.03208277]
[1756927275600,200.0,210.0,209.97,0.03208277]
[1756927276704,7.26,209.99,209.97,0.03208277]
[1756927276903,200.0,210.0,209.97,0.03208277]
[1756927277104,7.26,209.99,209.97,0.03208277]
[1756927277304,200.0,210.0,209.97,0.03208277]
[1756927277504,7.26,209.99,209.97,0.03208277]
[1756927277801,200.0,210.0,209.97,0.03208277]
[1756927278201,7.26,209.99,209.97,0.03208277]
[1756927278407,200.0,210.0,209.97,0.03208277]
[1756927278608,7.26,209.99,209.97,0.03208277]
[1756927279308,200.0,210.0,209.97,0.03208277]
[1756927279603,201.99840406,210.0,209.97,0.03208277]
[1756927279798,200.0,210.0,209.97,0.03208277]
[1756927279998,7.26,209.99,209.97,0.03208277]
[1756927280606,200.0,210.0,209.97,0.03208277]
[1756927281302,7.26,209.99,209.97,0.03208277]
[1756927281514,200.0,210.0,209.97,0.03208277]
[1756927282505,7.26,209.99,209.97,0.03208277]
[1756927283012,200.0,210.0,209.97,0.03208277]
[1756927283813,7.26,209.99,209.97,0.03208277]
[1756927284302,200.0,210.0,209.97,0.03208277]
[1756927284499,7.26,209.99,209.97,0.03208277]
[1756927285906,200.0,210.0,209.97,0.03208277]
[1756927286505,7.26,209.99,209.97,0.03208277]
[1756927286707,200.0,210.0,209.97,0.03208277]
[1756927287907,7.26,209.99,209.97,0.03208277]
[1756927288108,200.0,210.0,209.97,0.03208277]
[1756927288308,7.26,209.99,209.97,0.03208277]
[1756927288812,200.0,210.0,209.97,0.03208277]
[1756927289006,7.26,209.98,209.97,0.03208277]
[1756927291710,7.26,209.98,209.87,4.2869]
[1756927291711,7.74,209.98,209.89,1.99840406]
[1756927292009,118.77840406,209.99,209.89,1.99840406]
[1756927292010,7.26,209.95,209.89,1.99840406]
[1756927292209,116.78,209.94,209.89,1.99840406]
[1756927292610,7.26,209.93,209.89,1.99840406]
[1756927292811,116.78,209.94,209.89,1.99840406]
[1756927293013,7.26,209.93,209.89,1.99840406]
[1756927293514,124.04,209.94,209.87,7.88]
[1756927294115,0.03172962,209.93,209.87,7.88]
[1756927302115,0.03172962,209.93,209.9,7.53]
[1756927302517,0.03172962,209.93,209.89,3.11956062]
[1756927302823,0.03172962,209.93,209.9,7.53]
[1756927303319,0.03172962,209.93,209.89,3.11956062]
[1756927303525,0.03172962,209.93,209.92,10.64956062]
[1756927312730,0.03172962,209.93,209.92,7.53]
[1756927312927,0.03172962,209.93,209.91,3.11956062]
[1756927313231,7.80172962,209.93,209.89,7.53]
[1756927313428,7.77,209.92,209.89,7.53]
[1756927314224,0.03172962,209.93,209.88,3.11956062]
[1756927314428,0.03172962,209.93,209.89,7.53]
[1756927314729,7.80172962,209.93,209.89,7.53]
[1756927316033,7.80172962,209.93,209.89,7.56031493]
[1756927316334,7.77,209.92,209.89,7.56031493]
[1756927317230,7.77,209.92,209.89,0.03031493]
[1756927318332,7.77,209.92,209.89,7.56031493]
[1756927320132,0.03172962,209.93,209.89,0.03031493]
[1756927320329,7.77,209.92,209.89,0.03031493]
[1756927320629,0.03172962,209.93,209.89,0.03031493]
[1756927320825,7.77,209.92,209.89,0.03031493]
[1756927321132,0.03172962,209.93,209.89,0.03031493]
[1756927321429,7.77,209.92,209.89,0.03031493]
[1756927322426,8.25,209.92,209.89,0.03031493]
[1756927322627,8.25,209.92,209.78,10.64956062]
[1756927322628,7.77,209.9,209.78,10.64956062]
[1756927322828,3.59956062,209.91,209.78,10.64956062]
[1756927322829,3.11956062,209.91,209.78,7.53]
[1756927323027,7.77,209.87,209.75,10.64956062]
[1756927323231,3.11956062,209.88,209.75,10.64956062]
[1756927323738,7.77,209.87,209.75,10.64956062]
[1756927324035,7.80226252,209.84,209.75,10.64956062]
[1756927324236,7.80226252,209.84,209.75,7.53]
[1756927326932,7.80226252,209.84,209.75,10.64956062]
[1756927328335,7.77,209.83,209.75,7.53]
[1756927333142,7.77,209.83,209.77,3.11956062]
[1756927333440,7.77,209.83,209.77,10.75956062]
[1756927333839,0.03124024,209.82,209.78,7.64]
[1756927334041,0.03124024,209.82,209.77,3.11956062]
[1756927334237,0.03124024,209.82,209.78,7.64]
[1756927334444,7.33,209.81,209.78,7.64]
[1756927334833,7.33,209.81,209.74,10.75956062]
[1756927335239,7.33,209.81,209.74,7.64]
[1756927336137,7.33,209.81,209.73,3.11956062]
[1756927336642,7.33,209.81,209.7,7.64]
[1756927336845,7.33,209.81,209.71,3.11956062]
[1756927337240,0.03306131,209.78,209.71,3.11956062]
[1756927337439,7.36306131,209.78,209.71,3.11956062]
[1756927343844,7.36306131,209.78,209.72,7.64]
[1756927352257,0.03306131,209.78,209.69,327.78]
[1756927352457,7.33,209.77,209.69,7.64]
[1756927352652,7.33,209.77,209.67,119.95956062]
[1756927352863,0.03306131,209.78,209.67,119.95956062]
[1756927353060,7.33,209.77,209.67,119.95956062]
[1756927353261,0.03306131,209.78,209.67,119.95956062]
[1756927353466,2.00020015,209.76,209.69,2.00020015]
[1756927353653,7.33,209.75,209.69,2.00020015]
[1756927354365,7.33,209.77,209.71,2.00020015]
[1756927358167,0.03306131,209.78,209.73,9.64020015]
[1756927358369,7.33,209.77,209.73,9.64020015]
[1756927358674,7.97107263,209.9,209.66,19.82]
[1756927358675,7.33,209.82,209.75,2.00020015]
[1756927358869,0.03655491,209.77,209.67,7.64]
[1756927359066,0.03655491,209.77,209.66,19.82]
[1756927359268,0.03655491,209.77,209.67,7.64]
[1756927360068,0.03655491,209.77,209.76,9.64020015]
[1756927367377,0.03655491,209.77,209.76,2.00020015]
[1756927367878,0.03655491,209.77,209.76,9.25020015]
[1756927372092,0.03655491,209.77,209.76,2.00020015]
[1756927372390,0.03655491,209.77,209.69,55.36]
[1756927372391,7.81655491,209.77,209.74,9.25020015]
[1756927372590,0.03655491,209.77,209.74,2.00020015]
[1756927372784,0.03655491,209.77,209.75,7.25]
[1756927374985,7.78,209.76,209.72,9.25020015]
[1756927375591,7.81649364,209.76,209.72,9.25020015]
[1756927380195,7.81649364,209.76,209.73,7.25]
[1756927380393,0.03649364,209.76,209.74,2.00020015]
[1756927380788,0.03649364,209.76,209.75,7.25]
[1756927389104,7.78,209.75,209.7,2.00020015]
[1756927389299,7.78,209.75,209.71,7.25]
[1756927390400,9.78020015,209.75,209.71,7.25]
[1756927390599,2.00020015,209.73,209.67,7.25]
[1756927390803,9.78020015,209.73,209.65,9.25020015]
[1756927391004,7.78,209.73,209.67,2.00020015]
[1756927391197,0.03592786,209.71,209.68,7.25]
[1756927391708,0.03592786,209.71,209.67,2.00020015]
[1756927392006,0.03592786,209.71,209.7,7.27]
[1756927392201,3.68044283,209.71,209.7,7.27]
[1756927393206,3.678912,209.71,209.68,7.27]
[1756927393409,0.03592786,209.71,209.68,7.27]
[1756927394005,0.03592786,209.71,209.67,2.00020015]
[1756927395306,0.03592786,209.71,209.68,7.27]
[1756927395506,0.03592786,209.71,209.67,2.00020015]
[1756927396109,0.03592786,209.71,209.68,7.27]
[1756927397207,0.03592786,209.71,209.65,2.00020015]
[1756927397401,0.03592786,209.71,209.63,116.8]
[1756927397402,0.03592786,209.71,209.67,2.00020015]
[1756927397803,0.03592786,209.71,209.68,7.27]
[1756927398013,0.03592786,209.71,209.67,2.00020015]
[1756927398309,0.03592786,209.71,209.68,7.27]
[1756927398508,0.03592786,209.71,209.67,2.00020015]
[1756927398706,0.03592786,209.71,209.68,7.27]
[1756927398911,0.03592786,209.71,209.67,2.00020015]
[1756927399110,0.03592786,209.71,209.68,7.27]
[1756927399311,7.56592786,209.71,209.68,7.27]
[1756927400010,7.53,209.7,209.65,7.27]
[1756927400211,7.53,209.7,209.66,7.27]
[1756927402217,7.53,209.7,209.65,2.00020015]
[1756927402819,7.53,209.7,209.66,7.27]
[1756927403018,0.03592786,209.71,209.66,7.27]
[1756927403616,7.53,209.7,209.66,7.27]
[1756927403816,0.03592786,209.71,209.66,7.27]
[1756927404017,7.53,209.7,209.66,7.27]
[1756927404422,7.53,209.7,209.65,2.00020015]
[1756927404717,7.53,209.7,209.66,7.27]
[1756927406118,0.03592786,209.71,209.65,2.00020015]
[1756927406517,7.53,209.7,209.65,2.00020015]
[1756927406718,0.03592786,209.71,209.65,2.00020015]
[1756927407816,0.03592786,209.71,209.66,7.27]
[1756927408225,0.03592786,209.71,209.65,2.00020015]
[1756927408425,0.03592786,209.71,209.66,7.27]
[1756927409113,0.03592786,209.71,209.65,2.00020015]
[1756927409319,0.03592786,209.71,209.67,2.00020015]
[1756927409624,7.56592786,209.71,209.68,7.27]
[1756927416424,0.03592786,209.71,209.68,7.27]
[1756927416630,7.53,209.7,209.68,7.27]
[1756927417730,7.56592786,209.71,209.68,7.27]
[1756927418732,0.03592786,209.71,209.68,7.27]
[1756927418932,7.53,209.7,209.68,7.27]
[1756927420132,7.53,209.7,209.63,7.27]
[1756927421428,0.03592786,209.71,209.63,7.27]
[1756927421736,0.03592786,209.71,209.66,7.27]
[1756927422333,0.03592786,209.71,209.69,7.36]
[1756927422528,7.79,209.79,209.73,7.36]
[1756927422836,7.79,209.83,209.73,7.36]
[1756927427331,3.12635916,209.82,209.73,7.36]
[1756927427532,7.79,209.81,209.73,7.36]
[1756927428634,3.66613232,209.8,209.73,7.36]
[1756927428937,11.45613232,209.79,209.73,7.36]
[1756927429139,7.79,209.77,209.73,7.36]
[1756927429342,3.66613232,209.76,209.73,7.36]
[1756927429637,7.79,209.81,209.73,7.36]
[1756927429838,7.79,209.79,209.73,7.36]
[1756927430034,7.79,209.77,209.73,7.36]
[1756927430235,3.6665394,209.76,209.73,7.36]
[1756927431634,3.6665394,209.76,209.7,7.36]
[1756927438843,7.79,209.74,209.67,7.36]
[1756927439048,3.6665394,209.73,209.67,7.36]
[1756927439344,7.79,209.77,209.7,7.36]
[1756927441537,7.79,209.81,209.72,3.12635916]
[1756927441747,7.79,209.81,209.73,7.36]
[1756927442541,7.79,209.81,209.73,10.48635916]
[1756927443338,7.79,209.81,209.74,7.36]
[1756927443542,7.79,209.85,209.77,7.36]
[1756927445046,0.03557637,209.83,209.79,0.0339162]
[1756927445248,7.79,209.82,209.79,0.0339162]
[1756927445443,0.03557637,209.83,209.79,0.0339162]
[1756927445847,7.79,209.82,209.79,0.0339162]
[1756927446945,0.03557637,209.83,209.79,0.0339162]
[1756927447351,7.79,209.82,209.79,0.0339162]
[1756927447547,0.03557637,209.83,209.79,0.0339162]
[1756927447749,0.03557637,209.83,209.8,7.36]
[1756927448954,7.82557637,209.83,209.8,7.36]
[1756927450154,0.03557637,209.83,209.79,0.0339162]
[1756927450356,0.03557637,209.83,209.8,7.36]
[1756927451646,0.03557637,209.83,209.8,7.7]
[1756927451848,0.03557637,209.83,209.79,0.0339162]
[1756927452055,0.03557637,209.83,209.8,7.7]
[1756927452458,0.03557637,209.83,209.79,0.0339162]
[1756927453452,0.03557637,209.83,209.8,7.7]
[1756927454057,0.03557637,209.83,209.79,3.16027536]
[1756927454251,0.03557637,209.83,209.8,7.7]
[1756927454453,0.03557637,209.83,209.79,3.16027536]
[1756927454650,0.03557637,209.83,209.8,7.7]
[1756927455252,0.03557637,209.83,209.79,3.16027536]
[1756927455453,7.68,209.82,209.79,7.7339162]
[1756927455650,7.71557637,209.83,209.8,7.7]
[1756927456059,0.03557637,209.83,209.79,0.0339162]
[1756927456250,0.03557637,209.83,209.8,7.7]
[1756927457865,0.03557637,209.83,209.79,0.0339162]
[1756927458059,7.68,209.82,209.79,0.0339162]
[1756927458258,7.68,209.8,209.79,0.0339162]
[1756927464065,7.68,209.82,209.79,7.7339162]
[1756927464267,7.71557637,209.83,209.8,7.7]
[1756927464465,0.03557637,209.83,209.8,7.7]
[1756927466064,0.03557637,209.83,209.79,3.16027536]
[1756927466266,0.03557637,209.83,209.8,7.7]
[1756927466470,0.03557637,209.83,209.79,3.16027536]
[1756927467068,0.03557637,209.83,209.8,7.7]
[1756927467266,0.03557637,209.83,209.79,3.16027536]
[1756927467471,0.03557637,209.83,209.8,7.7]
[1756927467666,0.03557637,209.83,209.79,3.16027536]
[1756927467965,0.03557637,209.83,209.8,7.7]
[1756927468366,0.03557637,209.83,209.79,3.16027536]
[1756927468665,0.03557637,209.83,209.8,7.7]
[1756927468871,0.03557637,209.83,209.79,3.16027536]
[1756927469070,0.03557637,209.83,209.8,7.7]
[1756927469273,0.03557637,209.83,209.79,3.16027536]
[1756927469970,0.03557637,209.83,209.8,7.7]
[1756927471062,0.03557637,209.83,209.79,3.16027536]
[1756927471262,0.03557637,209.83,209.8,7.7]
[1756927472175,7.71557637,209.83,209.79,7.7339162]
[1756927472876,7.71557637,209.83,209.8,7.7]
[1756927475083,0.03557637,209.83,209.79,0.0339162]
[1756927475473,0.03557637,209.83,209.8,7.7]
[1756927475873,7.71557637,209.83,209.79,9.73211802]
[1756927476684,7.71557637,209.83,209.8,7.7]
[1756927476884,7.68,209.82,209.79,2.03211802]
[1756927477282,0.03557637,209.83,209.79,2.03211802]
[1756927477482,7.71557637,209.83,209.79,9.73211802]
[1756927477681,0.03557637,209.83,209.82,7.7]
[1756927480389,0.03557637,209.83,209.82,8.18]
[1756927481594,30.14,209.92,209.82,8.18]
[1756927481788,30.14,209.92,209.86,9.76820182]
[1756927482697,30.14,209.92,209.87,0.03558952]
[1756927483092,7.69,209.91,209.87,0.03558952]
[1756927483293,30.14,209.92,209.87,0.03558952]
[1756927483493,7.69,209.91,209.87,0.03558952]
[1756927484096,30.14,209.92,209.87,0.03558952]
[1756927484395,1.99820182,209.93,209.87,0.03558952]
[1756927484690,7.69,209.92,209.87,0.03558952]
[1756927485297,1.99820182,209.93,209.87,0.03558952]
[1756927485989,7.69,209.92,209.87,0.03558952]
[1756927486192,1.99820182,209.93,209.87,0.03558952]
[1756927486902,7.69,209.92,209.87,0.03558952]
[1756927487492,1.99820182,209.93,209.87,0.03558952]
[1756927487695,7.69,209.92,209.87,0.03558952]
[1756927487901,1.99820182,209.93,209.87,0.03558952]
[1756927488302,7.69,209.92,209.87,0.03558952]
[1756927488502,1.99820182,209.93,209.87,0.03558952]
[1756927488996,7.69,209.92,209.87,0.03558952]
[1756927489500,1.99820182,209.93,209.87,0.03558952]
[1756927489700,7.69,209.92,209.87,0.03558952]
[1756927490101,1.99820182,209.93,209.87,0.03558952]
[1756927490297,7.69,209.92,209.87,0.03558952]
[1756927490502,1.99820182,209.93,209.87,0.03558952]
[1756927490704,7.69,209.92,209.87,0.03558952]
[1756927491501,1.99820182,209.93,209.87,0.03558952]
[1756927491702,7.69,209.92,209.87,0.03558952]
[1756927492101,1.99820182,209.93,209.87,0.03558952]
[1756927492302,0.03209184,209.92,209.87,0.03558952]
[1756927492803,7.69,209.91,209.87,0.03558952]
[1756927493006,7.69,209.91,209.87,7.80558952]
[1756927493605,7.69,209.91,209.88,7.77]
[1756927495501,0.03209184,209.92,209.88,7.77]
[1756927495702,7.69,209.91,209.88,7.77]
[1756927496506,0.03209184,209.92,209.88,7.77]
[1756927496807,0.03209184,209.92,209.87,0.03558952]
[1756927497105,0.03209184,209.92,209.87,7.80558952]
[1756927497406,7.69,209.91,209.87,7.80558952]
[1756927497906,0.03209184,209.92,209.87,7.80558952]
[1756927498205,2.03029366,209.92,209.87,0.03558952]
[1756927498705,7.69,209.91,209.87,0.03558952]
[1756927499299,2.03029366,209.92,209.87,0.03558952]
[1756927499702,7.69,209.91,209.87,0.03558952]
[1756927499900,2.03029366,209.92,209.87,0.03558952]
[1756927500405,7.69,209.91,209.87,0.03558952]
[1756927500608,1.99820182,209.9,209.87,0.03558952]
[1756927500804,7.69,209.89,209.87,0.03558952]
[1756927501107,1.99820182,209.9,209.87,0.03558952]
[1756927501606,7.69,209.89,209.87,0.03558952]
[1756927501801,9.68820182,209.88,209.87,0.03558952]
[1756927510012,7.69,209.88,209.87,0.03558952]
[1756927510311,9.68820182,209.91,209.87,0.03558952]
[1756927510702,7.69,209.9,209.87,0.03558952]
[1756927510910,1.99820182,209.91,209.87,0.03558952]
[1756927511108,7.69,209.9,209.87,0.03558952]
[1756927511606,1.99820182,209.91,209.87,0.03558952]
[1756927511912,7.22,209.88,209.87,0.03558952]
[1756927518515,9.21820182,209.88,209.87,0.03558952]
[1756927519416,9.69820182,209.88,209.79,7.24]
[1756927519615,1.99820182,209.84,209.79,7.24]
[1756927519815,7.22,209.83,209.79,7.24]
[1756927520012,1.99820182,209.84,209.77,1.99820182]
[1756927520217,1.99820182,209.82,209.75,7.24]
[1756927521018,7.22,209.81,209.75,7.24]
[1756927521218,7.22,209.79,209.75,7.24]
[1756927521620,7.22,209.79,209.74,1.99820182]
[1756927521823,7.22,209.79,209.75,7.24]
[1756927522425,1.99820182,209.8,209.74,1.99820182]
[1756927522624,0.03322205,209.79,209.75,7.24]
[1756927522919,0.03322205,209.79,209.74,1.99820182]
[1756927523317,7.25322205,209.79,209.75,7.24]
[1756927523520,7.22,209.78,209.75,7.24]
[1756927523726,0.03322205,209.79,209.74,1.99820182]
[1756927523921,0.03322205,209.79,209.75,7.24]
[1756927524621,0.03322205,209.79,209.74,1.99820182]
[1756927524821,0.03322205,209.79,209.75,7.24]
[1756927525021,0.03322205,209.79,209.74,1.99820182]
[1756927525224,0.03322205,209.79,209.75,7.24]
[1756927526323,7.25322205,209.79,209.74,7.24]
[1756927526528,7.25322205,209.79,209.73,1.99820182]
[1756927526824,7.25322205,209.79,209.74,7.24]
[1756927527024,7.25322205,209.79,209.73,1.99820182]
[1756927527325,0.03322205,209.79,209.73,1.99820182]
[1756927527523,0.03322205,209.79,209.74,7.24]
[1756927527720,0.03322205,209.79,209.73,1.99820182]
[1756927527927,0.03322205,209.79,209.74,7.24]
[1756927528421,0.03322205,209.79,209.73,1.99820182]
[1756927528924,0.03322205,209.79,209.74,7.24]
[1756927529821,0.03322205,209.79,209.73,1.99820182]
[1756927530321,0.03322205,209.79,209.74,7.24]
[1756927530726,0.03322205,209.79,209.73,1.99820182]
[1756927530925,0.03322205,209.79,209.74,7.24]
[1756927531319,0.03322205,209.79,209.73,1.99820182]
[1756927531621,0.03322205,209.79,209.76,7.24]
[1756927532721,0.03322205,209.79,209.75,1.99820182]
[1756927533127,0.03322205,209.79,209.77,1.99820182]
[1756927533322,0.03322205,209.79,209.78,7.24]
[1756927535729,7.22,209.89,209.78,7.72]
[1756927535929,327.52,209.92,209.86,1.99820182]
[1756927536133,7.22,209.92,209.86,1.99820182]
[1756927536727,7.22,209.89,209.83,1.99820182]
[1756927536930,7.22,209.89,209.87,0.03084439]
[1756927537630,7.22,209.91,209.87,0.03084439]
[1756927537833,3.12142582,209.92,209.87,0.03084439]
[1756927538026,7.22,209.91,209.87,0.03084439]
[1756927538229,3.12142582,209.92,209.87,0.03084439]
[1756927538630,7.22,209.91,209.87,0.03084439]
[1756927538823,3.12142582,209.92,209.87,0.03084439]
[1756927539133,7.22,209.91,209.87,7.27084439]
[1756927539727,3.12142582,209.95,209.87,0.03084439]
[1756927539925,7.22,209.94,209.87,7.27084439]
[1756927569760,7.62,209.92,209.87,0.03084439]
[1756927569954,3.12142582,209.93,209.87,0.03084439]
[1756927569955,7.62,209.89,209.87,0.03084439]
[1756927570159,7.62,209.89,209.78,7.81]
[1756927571251,0.03243136,209.86,209.78,7.81]
[1756927571457,7.65243136,209.86,209.78,7.81]
[1756927588369,7.65243136,209.86,209.75,7.33]
[1756927594474,7.65243136,209.86,209.77,3.12142582]
[1756927594676,7.65243136,209.86,209.78,7.33]
[1756927597576,1.99867579,209.85,209.78,7.33]
[1756927598479,7.89,209.84,209.78,7.33]
[1756927600777,7.89,209.84,209.75,1.99867579]
[1756927601475,7.92156794,209.82,209.75,1.99867579]
[1756927603075,7.92156794,209.82,209.76,7.97]
[1756927603278,7.92156794,209.82,209.77,1.99867579]
[1756927603682,7.92156794,209.82,209.78,7.97]
[1756927603883,7.92156794,209.82,209.77,1.99867579]
[1756927604075,7.92156794,209.82,209.78,7.97]
[1756927604676,0.03156794,209.82,209.77,1.99867579]
[1756927604882,0.03156794,209.82,209.8,7.97]
[1756927605083,0.03156794,209.82,209.79,1.99867579]
[1756927605279,0.03156794,209.82,209.8,7.97]
[1756927605479,0.03156794,209.82,209.79,1.99867579]
[1756927605682,0.03156794,209.82,209.8,7.97]
[1756927606281,0.03156794,209.82,209.79,9.96867579]
[1756927608882,0.03156794,209.82,209.8,7.97]
[1756927609082,0.03156794,209.82,209.79,1.99867579]
[1756927609381,7.95,209.81,209.78,7.97]
[1756927609686,7.95,209.81,209.77,1.99867579]
[1756927609888,7.95,209.81,209.78,7.97]
[1756927610184,7.95,209.81,209.72,14.9]
[1756927610385,7.95,209.81,209.76,7.97]
[1756927610580,7.95,209.81,209.75,1.99867579]
[1756927610787,7.95,209.81,209.76,7.97]
[1756927610981,7.95,209.81,209.78,7.97]
[1756927613685,0.03248912,209.82,209.78,7.97]
[1756927613885,0.03248912,209.82,209.77,1.99867579]
[1756927614181,0.03248912,209.82,209.77,9.96867579]
[1756927614383,7.95,209.81,209.77,9.96867579]
[1756927615189,0.03248912,209.82,209.77,9.96867579]
[1756927615792,7.95,209.81,209.77,9.96867579]
[1756927616289,0.03248912,209.82,209.77,9.96867579]
[1756927616795,7.95,209.81,209.77,9.96867579]
[1756927617292,0.03248912,209.82,209.77,9.96867579]
[1756927617489,7.95,209.81,209.77,9.96867579]
[1756927617689,0.03248912,209.82,209.77,9.96867579]
[1756927618093,7.95,209.81,209.77,9.96867579]
[1756927618597,7.95,209.81,209.77,1.99867579]
[1756927618796,7.95,209.81,209.78,7.97]
[1756927619091,7.95,209.83,209.78,7.97]
[1756927619297,7.31272421,209.84,209.78,7.97]
[1756927619790,0.03119373,209.83,209.78,7.97]
[1756927619995,7.95,209.82,209.78,7.97]
[1756927620190,0.03119373,209.83,209.78,7.97]
[1756927620687,7.95,209.82,209.78,7.97]
[1756927620890,0.03119373,209.83,209.78,7.97]
[1756927621200,7.95,209.82,209.76,1.99867579]
[1756927621499,7.95,209.82,209.77,7.97]
[1756927621992,7.95,209.82,209.76,1.99867579]
[1756927622990,7.95,209.82,209.77,7.97]
[1756927623601,7.95,209.82,209.76,1.99867579]
[1756927623800,7.95,209.82,209.77,7.97]
[1756927624300,7.98119373,209.83,209.77,7.97]
[1756927638509,7.64,209.82,209.79,7.78]
[1756927638708,0.03119373,209.83,209.79,7.78]
[1756927639008,7.64,209.82,209.79,7.78]
[1756927639904,0.03119373,209.83,209.79,7.78]
[1756927640408,7.64,209.82,209.79,7.78]
[1756927641012,0.03119373,209.83,209.79,7.78]
[1756927641712,7.64,209.82,209.79,7.78]
[1756927642011,0.03119373,209.83,209.79,7.78]
[1756927642517,7.64,209.82,209.79,7.78]
[1756927643202,7.64,209.82,209.77,7.78]
[1756927643606,7.64,209.82,209.76,1.99867579]
[1756927643911,7.64,209.82,209.77,7.78]
[1756927644111,0.03119373,209.83,209.76,1.99867579]
[1756927644312,7.64,209.82,209.77,7.78]
[1756927644605,7.67119373,209.83,209.77,7.78]
[1756927654526,9.66986952,209.83,209.77,7.78]
[1756927656726,1.99867579,209.81,209.71,7.78]
[1756927656925,7.64,209.8,209.74,1.99867579]
[1756927657128,7.64,209.8,209.74,9.77867579]
[1756927658730,0.03161754,209.79,209.74,9.77867579]
[1756927658930,7.64,209.78,209.75,7.78]
[1756927659522,7.64,209.78,209.71,7.78]
[1756927659722,0.03161754,209.79,209.71,7.78]
[1756927661830,7.81161754,209.79,209.71,7.78]
[1756927673440,0.03161754,209.79,209.74,7.53]
[1756927673640,0.03161754,209.79,209.73,3.12436805]
[1756927674042,0.03161754,209.79,209.72,3.12436805]
[1756927674240,0.03161754,209.79,209.73,7.53]
[1756927674437,7.78,209.8,209.73,7.53]
[1756927674645,0.03104578,209.78,209.73,7.53]
[1756927674840,0.03104578,209.78,209.72,3.12436805]
[1756927675943,0.03104578,209.78,209.73,7.53]
[1756927676736,0.03104578,209.78,209.71,3.12436805]
[1756927676940,0.03104578,209.78,209.72,7.53]
[1756927695155,7.83104578,209.78,209.72,7.53]
[1756927697659,0.03104578,209.78,209.72,7.53]
[1756927700461,7.83104578,209.78,209.72,7.53]
[1756927713868,7.83104578,209.78,209.68,7.97]
[1756927717970,7.83104578,209.78,209.65,5.3384565]
[1756927718171,13.11404842,209.76,209.65,7.97]
[1756927718464,7.8,209.76,209.65,7.97]
[1756927719270,7.8,209.74,209.65,7.97]
[1756927719470,3.76109569,209.73,209.65,7.97]
[1756927719671,3.76109569,209.72,209.69,3.12436805]
[1756927719871,7.8,209.77,209.69,3.12436805]
[1756927719872,3.76109569,209.71,209.69,3.12436805]
[1756927720172,7.8,209.77,209.7,7.97]
[1756927720373,3.7585425,209.76,209.7,7.97]
[1756927720671,11.5585425,209.75,209.69,11.09436805]
[1756927720873,11.5585425,209.74,209.7,7.97]
[1756927721073,3.7585425,209.73,209.7,7.97]
[1756927721374,3.7585425,209.72,209.7,7.97]
[1756927721574,7.8,209.74,209.71,9.96984853]
[1756927721873,3.75818601,209.73,209.71,9.96984853]
[1756927722073,3.75818601,209.72,209.71,9.96984853]
[1756927724068,3.75818601,209.72,209.71,1.99984853]
[1756927726182,3.75818601,209.72,209.69,1.99984853]
[1756927726485,3.75818601,209.71,209.7,7.31]
[1756927734481,3.75818601,209.71,209.69,1.99984853]
[1756927734684,5.31404842,209.8,209.68,7.31]
[1756927734685,1.99984853,209.75,209.68,7.31]
[1756927734884,11.02556239,209.74,209.68,7.31]
[1756927735183,3.76556239,209.73,209.68,7.31]
[1756927735385,7.26,209.71,209.68,7.31]
[1756927736187,7.26,209.71,209.67,1.99984853]
[1756927736389,7.26,209.71,209.68,7.31]
[1756927737089,7.26,209.71,209.67,1.99984853]
[1756927737289,7.26,209.71,209.68,7.31]
[1756927738085,3.76553723,209.7,209.68,7.31]
[1756927738290,7.26,209.71,209.68,7.31]
[1756927738492,3.76556921,209.7,209.68,7.31]
[1756927738789,7.26,209.71,209.68,7.31]
[1756927739092,3.76563031,209.7,209.68,7.31]
[1756927739290,7.26,209.71,209.68,7.31]